fUSD/lending_fUSD_20260614
["ID","MTS","AMOUNT","RATE_DAILY","PERIOD"]
[425039773,1781440251000,-500.0,0.00027397,2]
[425039762,1781440251000,-408.3,0.00027397,2]
[425039739,1781440251000,-597.21363515,0.00027397,2]
[425039755,1781440251000,-500.0,0.00027397,2]
[425039734,1781440251000,-431.72,0.00027397,2]
[425039723,1781440251000,-500.0,0.00027397,2]
[425039733,1781440251000,-279.05,0.00027397,2]
[425039766,1781440251000,-500.0,0.00027397,2]
[425039715,1781440251000,-500.0,0.00027397,2]
[425039712,1781440251000,-255.46,0.00027397,2]
[425039710,1781440251000,-257.66,0.00027397,2]
[425039713,1781440251000,-500.0,0.00027397,2]
[425039711,1781440251000,-500.0,0.00027397,2]
[425039714,1781440251000,-633.32,0.00027397,2]
[425039716,1781440251000,-500.0,0.00027397,2]
[425039719,1781440251000,-309.73,0.00027397,2]
[425039718,1781440251000,-500.0,0.00027397,2]
[425039722,1781440251000,-330.68,0.00027397,2]
[425039721,1781440251000,-500.0,0.00027397,2]
[425039735,1781440251000,-436.91,0.00027397,2]
[425039717,1781440251000,-500.0,0.00027397,2]
[425039725,1781440251000,-500.0,0.00027397,2]
[425039726,1781440251000,-500.0,0.00027397,2]
[425039724,1781440251000,-500.0,0.00027397,2]
[425039728,1781440251000,-500.0,0.00027397,2]
[425039736,1781440251000,-500.0,0.00027397,2]
[425039738,1781440251000,-500.0,0.00027397,2]
[425039727,1781440251000,-500.0,0.00027397,2]
[425039737,1781440251000,-500.0,0.00027397,2]
[425039729,1781440251000,-500.0,0.00027397,2]
[425039732,1781440251000,-500.0,0.00027397,2]
[425039730,1781440251000,-526.58,0.00027397,2]
[425039731,1781440251000,-500.0,0.00027397,2]
[425039720,1781440251000,-500.0,0.00027397,2]
[425039768,1781440251000,-500.0,0.00027397,2]
[425039825,1781440251000,-500.0,0.00027397,2]
[425039769,1781440251000,-500.0,0.00027397,2]
[425039800,1781440251000,-500.0,0.00027397,2]
[425039807,1781440251000,-500.0,0.00027397,2]
[425039801,1781440251000,-500.0,0.00027397,2]
[425039803,1781440251000,-642.39,0.00027397,2]
[425039810,1781440251000,-500.0,0.00027397,2]
[425039809,1781440251000,-500.0,0.00027397,2]
[425039806,1781440251000,-500.0,0.00027397,2]
[425039804,1781440251000,-500.0,0.00027397,2]
[425039811,1781440251000,-500.0,0.00027397,2]
[425039805,1781440251000,-500.0,0.00027397,2]
[425039808,1781440251000,-500.0,0.00027397,2]
[425039813,1781440251000,-539.95,0.00027397,2]
[425039802,1781440251000,-500.0,0.00027397,2]
[425039822,1781440251000,-500.0,0.00027397,2]
[425039816,1781440251000,-371.78,0.00027397,2]
[425039817,1781440251000,-352.24,0.00027397,2]
[425039814,1781440251000,-500.0,0.00027397,2]
[425039819,1781440251000,-500.0,0.00027397,2]
[425039821,1781440251000,-500.0,0.00027397,2]
[425039818,1781440251000,-500.0,0.00027397,2]
[425039815,1781440251000,-500.0,0.00027397,2]
[425039820,1781440251000,-500.0,0.00027397,2]
[425039823,1781440251000,-500.0,0.00027397,2]
[425039826,1781440251000,-500.0,0.00027397,2]
[425039824,1781440251000,-500.0,0.00027397,2]
[425039764,1781440251000,-500.0,0.00027397,2]
[425039812,1781440251000,-404.41,0.00027397,2]
[425039799,1781440251000,-198.76,0.00027397,2]
[425039827,1781440251000,-207.97,0.00027397,2]
[425039795,1781440251000,-500.0,0.00027397,2]
[425039794,1781440251000,-500.0,0.00027397,2]
[425039772,1781440251000,-460.39,0.00027397,2]
[425039770,1781440251000,-500.0,0.00027397,2]
[425039771,1781440251000,-500.0,0.00027397,2]
[425039775,1781440251000,-500.0,0.00027397,2]
[425039774,1781440251000,-500.0,0.00027397,2]
[425039776,1781440251000,-500.0,0.00027397,2]
[425039784,1781440251000,-361.27,0.00027397,2]
[425039785,1781440251000,-500.0,0.00027397,2]
[425039778,1781440251000,-500.0,0.00027397,2]
[425039781,1781440251000,-245.1,0.00027397,2]
[425039782,1781440251000,-500.0,0.00027397,2]
[425039777,1781440251000,-619.45,0.00027397,2]
[425039767,1781440251000,-500.0,0.00027397,2]
[425039780,1781440251000,-500.0,0.00027397,2]
[425039793,1781440251000,-338.92,0.00027397,2]
[425039792,1781440251000,-675.99,0.00027397,2]
[425039788,1781440251000,-500.0,0.00027397,2]
[425039791,1781440251000,-500.0,0.00027397,2]
[425039783,1781440251000,-169.74,0.00027397,2]
[425039789,1781440251000,-353.89800763,0.00027397,2]
[425039790,1781440251000,-608.76,0.00027397,2]
[425039797,1781440251000,-500.0,0.00027397,2]
[425039796,1781440251000,-500.0,0.00027397,2]
[425039798,1781440251000,-500.0,0.00027397,2]
[425039786,1781440251000,-639.46,0.00027397,2]
[425039779,1781440251000,-500.0,0.00027397,2]
[425039787,1781440251000,-603.21,0.00027397,2]
[425039869,1781440252000,-500.0,0.00027397,2]
[425039868,1781440252000,-500.0,0.00027397,2]
[425039864,1781440252000,-361.54,0.00027397,2]
[425039861,1781440252000,-500.0,0.00027397,2]
[425039854,1781440252000,-500.0,0.00027397,2]
[425039865,1781440252000,-500.0,0.00027397,2]
[425039863,1781440252000,-248.75,0.00027397,2]
[425039860,1781440252000,-500.0,0.00027397,2]
[425039859,1781440252000,-595.47,0.00027397,2]
[425039855,1781440252000,-500.0,0.00027397,2]
[425039862,1781440252000,-228.2,0.00027397,2]
[425039866,1781440252000,-241.02,0.00027397,2]
[425039873,1781440252000,-500.0,0.00027397,2]
[425039871,1781440252000,-500.0,0.00027397,2]
[425039874,1781440252000,-500.0,0.00027397,2]
[425039870,1781440252000,-500.0,0.00027397,2]
[425039872,1781440252000,-351.46,0.00027397,2]
[425039876,1781440252000,-500.0,0.00027397,2]
[425039875,1781440252000,-500.0,0.00027397,2]
[425039879,1781440252000,-191.52,0.00027397,2]
[425039877,1781440252000,-500.0,0.00027397,2]
[425039878,1781440252000,-500.0,0.00027397,2]
[425039880,1781440252000,-500.0,0.00027397,2]
[425039881,1781440252000,-500.0,0.00027397,2]
[425039856,1781440252000,-500.0,0.00027397,2]
[425039867,1781440252000,-200.26,0.00027397,2]
[425039892,1781440252000,-500.0,0.00027397,2]
[425039842,1781440252000,-434.49,0.00027397,2]
[425039858,1781440252000,-354.7,0.00027397,2]
[425039830,1781440252000,-500.0,0.00027397,2]
[425039828,1781440252000,-500.0,0.00027397,2]
[425039833,1781440252000,-207.07,0.00027397,2]
[425039831,1781440252000,-500.0,0.00027397,2]
[425039829,1781440252000,-500.0,0.00027397,2]
[425039832,1781440252000,-500.0,0.00027397,2]
[425039835,1781440252000,-553.49,0.00027397,2]
[425039846,1781440252000,-500.0,0.00027397,2]
[425039838,1781440252000,-250.29,0.00027397,2]
[425039834,1781440252000,-500.0,0.00027397,2]
[425039845,1781440252000,-500.0,0.00027397,2]
[425039837,1781440252000,-500.0,0.00027397,2]
[425039839,1781440252000,-500.0,0.00027397,2]
[425039836,1781440252000,-500.0,0.00027397,2]
[425039840,1781440252000,-500.0,0.00027397,2]
[425039841,1781440252000,-500.0,0.00027397,2]
[425039843,1781440252000,-500.0,0.00027397,2]
[425039844,1781440252000,-500.0,0.00027397,2]
[425039847,1781440252000,-500.0,0.00027397,2]
[425039849,1781440252000,-500.0,0.00027397,2]
[425039850,1781440252000,-477.01,0.00027397,2]
[425039848,1781440252000,-442.04,0.00027397,2]
[425039851,1781440252000,-521.7,0.00027397,2]
[425039857,1781440252000,-500.0,0.00027397,2]
[425039852,1781440252000,-500.0,0.00027397,2]
[425039853,1781440252000,-500.0,0.00027397,2]
[425039886,1781440252000,-500.0,0.00027397,2]
[425039913,1781440252000,-500.0,0.00027397,2]
[425039891,1781440252000,-490.28,0.00027397,2]
[425039916,1781440252000,-471.09,0.00027397,2]
[425039927,1781440252000,-500.0,0.00027397,2]
[425039919,1781440252000,-500.0,0.00027397,2]
[425039918,1781440252000,-500.0,0.00027397,2]
[425039923,1781440252000,-357.62,0.00027397,2]
[425039922,1781440252000,-500.0,0.00027397,2]
[425039920,1781440252000,-163.17,0.00027397,2]
[425039921,1781440252000,-500.0,0.00027397,2]
[425039926,1781440252000,-500.0,0.00027397,2]
[425039924,1781440252000,-500.0,0.00027397,2]
[425039925,1781440252000,-500.0,0.00027397,2]
[425039928,1781440252000,-536.28,0.00027397,2]
[425039930,1781440252000,-500.0,0.00027397,2]
[425039932,1781440252000,-500.0,0.00027397,2]
[425039931,1781440252000,-500.0,0.00027397,2]
[425039933,1781440252000,-561.3,0.00027397,2]
[425039929,1781440252000,-500.0,0.00027397,2]
[425039937,1781440252000,-628.84,0.00027397,2]
[425039934,1781440252000,-318.06,0.00027397,2]
[425039935,1781440252000,-500.0,0.00027397,2]
[425039936,1781440252000,-318.05,0.00027397,2]
[425039938,1781440252000,-618.72,0.00027397,2]
[425039940,1781440252000,-500.0,0.00027397,2]
[425039941,1781440252000,-500.0,0.00027397,2]
[425039885,1781440252000,-1409.99,0.00027397,2]
[425039917,1781440252000,-344.7,0.00027397,2]
[425039912,1781440252000,-500.0,0.00027397,2]
[425039939,1781440252000,-646.14,0.00027397,2]
[425039914,1781440252000,-500.0,0.00027397,2]
[425039910,1781440252000,-500.0,0.00027397,2]
[425039887,1781440252000,-500.0,0.00027397,2]
[425039884,1781440252000,-500.0,0.00027397,2]
[425039882,1781440252000,-500.0,0.00027397,2]
[425039883,1781440252000,-500.0,0.00027397,2]
[425039889,1781440252000,-500.0,0.00027397,2]
[425039888,1781440252000,-500.0,0.00027397,2]
[425039894,1781440252000,-500.0,0.00027397,2]
[425039904,1781440252000,-343.21,0.00027397,2]
[425039895,1781440252000,-500.0,0.00027397,2]
[425039893,1781440252000,-500.0,0.00027397,2]
[425039896,1781440252000,-307.15,0.00027397,2]
[425039898,1781440252000,-359.5,0.00027397,2]
[425039890,1781440252000,-500.0,0.00027397,2]
[425039897,1781440252000,-500.0,0.00027397,2]
[425039909,1781440252000,-334.6,0.00027397,2]
[425039915,1781440252000,-161.5,0.00027397,2]
[425039908,1781440252000,-500.0,0.00027397,2]
[425039900,1781440252000,-507.44,0.00027397,2]
[425039906,1781440252000,-500.0,0.00027397,2]
[425039911,1781440252000,-500.0,0.00027397,2]
[425039905,1781440252000,-500.0,0.00027397,2]
[425039903,1781440252000,-500.0,0.00027397,2]
[425039902,1781440252000,-500.0,0.00027397,2]
[425039899,1781440252000,-500.0,0.00027397,2]
[425039901,1781440252000,-500.0,0.00027397,2]
[425039907,1781440252000,-339.46,0.00027397,2]
[425039980,1781440253000,-500.0,0.00027397,2]
[425039974,1781440253000,-500.0,0.00027397,2]
[425039973,1781440253000,-500.0,0.00027397,2]
[425039970,1781440253000,-34.38789802,0.00027397,2]
[425039975,1781440253000,-461.54,0.00027397,2]
[425039968,1781440253000,-500.0,0.00027397,2]
[425039976,1781440253000,-500.0,0.00027397,2]
[425039977,1781440253000,-491.52,0.00027397,2]
[425039972,1781440253000,-500.0,0.00027397,2]
[425039978,1781440253000,-500.0,0.00027397,2]
[425039979,1781440253000,-500.0,0.00027397,2]
[425039989,1781440253000,-190.07,0.00027397,2]
[425039981,1781440253000,-505.4,0.00027397,2]
[425039982,1781440253000,-286.88,0.00027397,2]
[425039988,1781440253000,-500.0,0.00027397,2]
[425039985,1781440253000,-500.0,0.00027397,2]
[425039987,1781440253000,-461.6440774,0.00027397,2]
[425039984,1781440253000,-261.1062662,0.00027397,2]
[425039986,1781440253000,-38.3559226,0.00027397,2]
[425039990,1781440253000,-295.96,0.00027397,2]
[425039992,1781440253000,-528.97,0.00027397,2]
[425039971,1781440253000,-465.61210198,0.00027397,2]
[425039993,1781440253000,-500.0,0.00027397,2]
[425039983,1781440253000,-377.6137338,0.00027397,2]
[425039969,1781440253000,-500.0,0.00027397,2]
[425039956,1781440253000,-89.04788463,0.00027397,2]
[425039965,1781440253000,-250.7285267,0.00027397,2]
[425039994,1781440253000,-500.0,0.00027397,2]
[425039943,1781440253000,-500.0,0.00027397,2]
[425039949,1781440253000,-500.0,0.00027397,2]
[425039942,1781440253000,-500.0,0.00027397,2]
[425039946,1781440253000,-500.0,0.00027397,2]
[425039947,1781440253000,-500.0,0.00027397,2]
[425039944,1781440253000,-500.0,0.00027397,2]
[425039948,1781440253000,-500.0,0.00027397,2]
[425039945,1781440253000,-500.0,0.00027397,2]
[425039950,1781440253000,-525.12,0.00027397,2]
[425039951,1781440253000,-500.0,0.00027397,2]
[425039967,1781440253000,-500.0,0.00027397,2]
[425039953,1781440253000,-506.29,0.00027397,2]
[425039955,1781440253000,-281.40211537,0.00027397,2]
[425039954,1781440253000,-218.59788463,0.00027397,2]
[425039957,1781440253000,-410.95211537,0.00027397,2]
[425039966,1781440253000,-249.2714733,0.00027397,2]
[425039962,1781440253000,-153.18794817,0.00027397,2]
[425039961,1781440253000,-346.81205183,0.00027397,2]
[425039963,1781440253000,-500.0,0.00027397,2]
[425039964,1781440253000,-629.3,0.00027397,2]
[425039960,1781440253000,-630.28,0.00027397,2]
[425039959,1781440253000,-359.08844034,0.00027397,2]
[425039958,1781440253000,-140.91155966,0.00027397,2]
[425039952,1781440253000,-500.0,0.00027397,2]
[425039991,1781440253000,-500.0,0.00027397,2]
[425040013,1781440253000,-261.21097952,0.00027397,2]
[425039996,1781440253000,-488.35,0.00027397,2]
[425040035,1781440253000,-30.64467532,0.00027397,2]
[425040033,1781440253000,-633.28,0.00027397,2]
[425040027,1781440253000,-500.0,0.00027397,2]
[425040024,1781440253000,-296.66,0.00027397,2]
[425039995,1781440253000,-500.0,0.00027397,2]
[425040028,1781440253000,-500.0,0.00027397,2]
[425040025,1781440253000,-500.0,0.00027397,2]
[425040029,1781440253000,-500.0,0.00027397,2]
[425040032,1781440253000,-158.83,0.00027397,2]
[425040031,1781440253000,-500.0,0.00027397,2]
[425040030,1781440253000,-473.6,0.00027397,2]
[425040034,1781440253000,-500.0,0.00027397,2]
[425040038,1781440253000,-500.0,0.00027397,2]
[425040037,1781440253000,-500.0,0.00027397,2]
[425040045,1781440253000,-599.49,0.00027397,2]
[425040039,1781440253000,-500.0,0.00027397,2]
[425040041,1781440253000,-500.0,0.00027397,2]
[425040040,1781440253000,-500.0,0.00027397,2]
[425040046,1781440253000,-500.0,0.00027397,2]
[425040043,1781440253000,-500.0,0.00027397,2]
[425040042,1781440253000,-500.0,0.00027397,2]
[425040044,1781440253000,-615.64,0.00027397,2]
[425040048,1781440253000,-277.87467541,0.00027397,2]
[425040047,1781440253000,-500.0,0.00027397,2]
[425040036,1781440253000,-326.19532468,0.00027397,2]
[425040023,1781440253000,-500.0,0.00027397,2]
[425040026,1781440253000,-500.0,0.00027397,2]
[425040018,1781440253000,-500.0,0.00027397,2]
[425040000,1781440253000,-174.6640774,0.00027397,2]
[425039997,1781440253000,-500.0,0.00027397,2]
[425039999,1781440253000,-397.5459226,0.00027397,2]
[425039998,1781440253000,-504.12,0.00027397,2]
[425040001,1781440253000,-460.8421707,0.00027397,2]
[425040021,1781440253000,-500.0,0.00027397,2]
[425040002,1781440253000,-39.1578293,0.00027397,2]
[425040005,1781440253000,-500.0,0.00027397,2]
[425040003,1781440253000,-195.05,0.00027397,2]
[425040006,1781440253000,-296.5630876,0.00027397,2]
[425040007,1781440253000,-203.4369124,0.00027397,2]
[425040011,1781440253000,-500.0,0.00027397,2]
[425040004,1781440253000,-500.0,0.00027397,2]
[425040009,1781440253000,-630.6,0.00027397,2]
[425040008,1781440253000,-475.92,0.00027397,2]
[425040022,1781440253000,-589.95,0.00027397,2]
[425040015,1781440253000,-500.0,0.00027397,2]
[425040020,1781440253000,-500.0,0.00027397,2]
[425040017,1781440253000,-249.52,0.00027397,2]
[425040016,1781440253000,-163.65,0.00027397,2]
[425040012,1781440253000,-238.78902048,0.00027397,2]
[425040014,1781440253000,-500.0,0.00027397,2]
[425040010,1781440253000,-514.6,0.00027397,2]
[425040019,1781440253000,-500.0,0.00027397,2]
[425040062,1781440254000,-500.0,0.00027397,2]
[425040050,1781440254000,-500.0,0.00027397,2]
[425040059,1781440254000,-500.0,0.00027397,2]
[425040055,1781440254000,-500.0,0.00027397,2]
[425040053,1781440254000,-500.0,0.00027397,2]
[425040051,1781440254000,-500.0,0.00027397,2]
[425040057,1781440254000,-500.0,0.00027397,2]
[425040054,1781440254000,-500.0,0.00027397,2]
[425040052,1781440254000,-223.45,0.00027397,2]
[425040049,1781440254000,-222.12532459,0.00027397,2]
[425040058,1781440254000,-500.0,0.00027397,2]
[425040064,1781440254000,-1000.0,0.00027397,2]
[425040056,1781440254000,-500.0,0.00027397,2]
[425040063,1781440254000,-500.0,0.00027397,2]
[425040074,1781440254000,-500.0,0.00027397,2]
[425040061,1781440254000,-500.0,0.00027397,2]
[425040076,1781440254000,-437.14667792,0.00027397,2]
[425040077,1781440254000,-500.0,0.00027397,2]
[425040075,1781440254000,-121.79332208,0.00027397,2]
[425040078,1781440254000,-473.90883726,0.00027397,2]
[425040073,1781440254000,-500.0,0.00027397,2]
[425040072,1781440254000,-301.93844791,0.00027397,2]
[425040060,1781440254000,-274.03,0.00027397,2]
[425040071,1781440254000,-295.52155209,0.00027397,2]
[425040067,1781440254000,-500.0,0.00027397,2]
[425040069,1781440254000,-174.90555917,0.00025,2]
[425040065,1781440254000,-500.0,0.00027397,2]
[425040068,1781440254000,-4.02457818,0.00027397,2]
[425040066,1781440254000,-500.0,0.00027397,2]
[425040070,1781440254000,-495.97542182,0.00027397,2]
[425040082,1781440601000,-282.97363891,0.00015638,2]
[425040084,1781440601000,-500.0,0.00016437,2]
[425040083,1781440601000,-163.74,0.000164,2]
[425040086,1781440601000,-500.0,0.00016437,2]
[425040085,1781440601000,-500.0,0.00016437,2]
[425040087,1781440601000,-500.0,0.00016437,2]
[425040088,1781440601000,-500.0,0.00016437,2]
[425040081,1781440601000,-388.41486827,0.00015638,2]
[425040092,1781440601000,-1000.0,0.00016438,2]
[425040090,1781440601000,-600.87493891,0.00016437,2]
[425040095,1781440601000,-1000.0,0.00016438,2]
[425040096,1781440601000,-1000.0,0.00016438,2]
[425040097,1781440601000,-253.59655391,0.00016438,2]
[425040093,1781440601000,-1000.0,0.00016438,2]
[425040091,1781440601000,-310.4,0.00016438,2]
[425040089,1781440601000,-500.0,0.00016437,2]
[425040094,1781440601000,-1000.0,0.00016438,2]
[425040099,1781440607000,-510.59655391,0.00016438,2]
[425040098,1781440607000,-746.40344609,0.00016438,2]
[425040115,1781440647000,-1000.0,0.00016438,2]
[425040108,1781440647000,-1000.0,0.00016438,2]
[425040114,1781440647000,-1000.0,0.00016438,2]
[425040113,1781440647000,-1000.0,0.00016438,2]
[425040112,1781440647000,-1000.0,0.00016438,2]
[425040111,1781440647000,-1000.0,0.00016438,2]
[425040110,1781440647000,-1000.0,0.00016438,2]
[425040109,1781440647000,-1000.0,0.00016438,2]
[425040104,1781440647000,-500.0,0.00016437,2]
[425040107,1781440647000,-489.40344609,0.00016438,2]
[425040102,1781440647000,-500.0,0.00016437,2]
[425040105,1781440647000,-500.0,0.00016437,2]
[425040103,1781440647000,-500.0,0.00016437,2]
[425040100,1781440647000,-500.0,0.00016437,2]
[425040101,1781440647000,-500.0,0.00016437,2]
[425040117,1781440647000,-1000.0,0.00016438,2]
[425040106,1781440647000,-600.0,0.00016437,2]
[425040116,1781440647000,-1000.0,0.00016438,2]
[425040128,1781440647000,-1000.0,0.00016438,2]
[425040119,1781440647000,-1000.0,0.00016438,2]
[425040136,1781440647000,-382.59655391,0.00016438,2]
[425040135,1781440647000,-1000.0,0.00016438,2]
[425040134,1781440647000,-1000.0,0.00016438,2]
[425040131,1781440647000,-1000.0,0.00016438,2]
[425040118,1781440647000,-1000.0,0.00016438,2]
[425040130,1781440647000,-1000.0,0.00016438,2]
[425040129,1781440647000,-1000.0,0.00016438,2]
[425040132,1781440647000,-1000.0,0.00016438,2]
[425040125,1781440647000,-1000.0,0.00016438,2]
[425040126,1781440647000,-1000.0,0.00016438,2]
[425040124,1781440647000,-1000.0,0.00016438,2]
[425040123,1781440647000,-1000.0,0.00016438,2]
[425040122,1781440647000,-1000.0,0.00016438,2]
[425040121,1781440647000,-1000.0,0.00016438,2]
[425040120,1781440647000,-1000.0,0.00016438,2]
[425040127,1781440647000,-1000.0,0.00016438,2]
[425040133,1781440647000,-1000.0,0.00016438,2]
[425040141,1781441130000,-150.0,0.00015521,2]
[425040142,1781441130000,-285.08350966,0.00015638,2]
[425040140,1781441130000,-150.0,0.00015055,2]
[425040143,1781441233000,-201.88583069,0.00015538,2]
[425040144,1781441233000,-110.32213102,0.00015638,2]
[425040146,1781441233000,-195.33863483,0.00015638,2]
[425040149,1781441233000,-28.03473497,0.00016332,2]
[425040148,1781441233000,-191.91628253,0.00015638,2]
[425040145,1781441233000,-207.72439217,0.00015638,2]
[425040147,1781441233000,-194.52184158,0.00015638,2]
[425040152,1781441249000,-19.60526823,0.00016432,2]
[425040150,1781441249000,-158.91946269,0.00016332,2]
[425040151,1781441249000,-316.8850803,0.00016424,2]
[425040175,1781441431000,-271.90586894,0.00016438,2]
[425040172,1781441431000,-336.3,0.00016438,2]
[425040170,1781441431000,-964.63315379,0.00016438,2]
[425040169,1781441431000,-1000.0,0.00016438,2]
[425040166,1781441431000,-508.7861773,0.00016438,2]
[425040167,1781441431000,-1000.0,0.00016438,2]
[425040168,1781441431000,-1000.0,0.00016438,2]
[425040165,1781441431000,-491.2138227,0.00016438,2]
[425040162,1781441431000,-500.0,0.00016437,2]
[425040171,1781441431000,-35.36684621,0.00016438,2]
[425040164,1781441431000,-617.40344609,0.00016438,2]
[425040161,1781441431000,-354.30169685,0.00016437,2]
[425040159,1781441431000,-150.0,0.00016434,2]
[425040160,1781441431000,-255.0,0.00016437,2]
[425040163,1781441431000,-281.0,0.00016437,2]
[425040176,1781441431000,-34.79083217,0.00016438,2]
[425040174,1781441431000,-253.46543089,0.00016438,2]
[425040183,1781441431000,-25.23444752,0.00016438,2]
[425040177,1781441431000,-1000.0,0.00016438,2]
[425040178,1781441431000,-1000.0,0.00016438,2]
[425040180,1781441431000,-1000.0,0.00016438,2]
[425040182,1781441431000,-974.76555248,0.00016438,2]
[425040181,1781441431000,-1000.0,0.00016438,2]
[425040185,1781441431000,-933.73,0.00016438,2]
[425040188,1781441431000,-300.0,0.00017092,2]
[425040184,1781441431000,-1000.0,0.00016438,2]
[425040173,1781441431000,-439.837868,0.00016438,2]
[425040189,1781441431000,-150.0,0.000171,2]
[425040186,1781441431000,-670.94,0.00016438,2]
[425040179,1781441431000,-1000.0,0.00016438,2]
[425040187,1781441431000,-650.81,0.00016932,2]
[425040191,1781441431000,-1763.83744547,0.00017202,2]
[425040190,1781441431000,-300.0,0.00017202,2]
[425040204,1781441432000,-1476.4913121,0.00017734,2]
[425040202,1781441432000,-36.12697356,0.0001764,2]
[425040193,1781441432000,-683.18712388,0.00017202,2]
[425040197,1781441432000,-150.0,0.0001764,2]
[425040199,1781441432000,-115.87302644,0.0001764,2]
[425040192,1781441432000,-3395.51357427,0.00017202,2]
[425040195,1781441432000,-770.93185638,0.00017202,2]
[425040236,1781441440000,-500.0,0.00019212,2]
[425040237,1781441440000,-500.0,0.00019212,2]
[425040235,1781441440000,-500.0,0.00019212,2]
[425040233,1781441440000,-186.95419766,0.00019112,2]
[425040239,1781441440000,-500.0,0.00019212,2]
[425040238,1781441440000,-500.0,0.00019212,2]
[425040226,1781441440000,-166.66,0.00018588,2]
[425040244,1781441440000,-584.29044599,0.00019378,2]
[425040240,1781441440000,-552.84,0.00019212,2]
[425040234,1781441440000,-500.0,0.00019212,2]
[425040232,1781441440000,-584.79,0.00019036,2]
[425040230,1781441440000,-166.66,0.00018971,2]
[425040228,1781441440000,-28.02415108,0.0001883,2]
[425040231,1781441440000,-2726.36,0.00019006,2]
[425040241,1781441440000,-500.0,0.00019212,2]
[425040222,1781441440000,-166.66,0.00018204,2]
[425040227,1781441440000,-1585.02934892,0.0001883,2]
[425040243,1781441440000,-166.66,0.00019354,2]
[425040225,1781441440000,-740.92807766,0.00018412,2]
[425040224,1781441440000,-336.3,0.0001841,2]
[425040223,1781441440000,-1555.5,0.00018282,2]
[425040221,1781441440000,-500.0,0.00018053,2]
[425040217,1781441440000,-508.0,0.00018,2]
[425040218,1781441440000,-500.0,0.00018052,2]
[425040220,1781441440000,-500.0,0.00018053,2]
[425040216,1781441440000,-150.99,0.00017787,2]
[425040219,1781441440000,-500.0,0.00018052,2]
[425040215,1781441440000,-496.26,0.00017787,2]
[425040213,1781441440000,-1126.34053152,0.00016337,2]
[425040214,1781441440000,-23.5086879,0.00017734,2]
[425040229,1781441440000,-276.73,0.0001889,2]
[425040242,1781441440000,-173.91,0.00019347,2]
[425040260,1781441440000,-159.0,0.0002,2]
[425040250,1781441440000,-173.91,0.00019831,2]
[425040246,1781441440000,-302.63,0.00019409,2]
[425040274,1781441440000,-109.57098791,0.00020451,2]
[425040278,1781441440000,-1125.00199594,0.00020548,2]
[425040275,1781441440000,-150.0,0.00020451,2]
[425040277,1781441440000,-8567.6779742,0.00020548,2]
[425040276,1781441440000,-250.29969941,0.00020492,2]
[425040270,1781441440000,-336.3,0.00020381,2]
[425040272,1781441440000,-302.63,0.00020397,2]
[425040273,1781441440000,-281.21433397,0.00020451,2]
[425040269,1781441440000,-173.91,0.00020315,2]
[425040266,1781441440000,-154.0,0.0002,2]